[Event "56th Rubinstein Memorial C 2020"]
[Site "Polanica Zdroj"]
[Date "2020.08.15"]
[Round "1.13"]
[White "Krzyzosiak, Anna"]
[Black "Rudecki, Bartosz"]
[Result "0-1"]
[ECO "C55"]
[WhiteElo "1621"]
[BlackElo "1831"]
[Annotator "NA"]
[PlyCount "154"]
[EventDate "2020.08.15"]
[EventType "swiss"]
[EventCountry "POL"]
[SourceTitle "playchess.com"]
[Source "ChessBase"]
[SourceQuality "1"]
[TimeControl "40/5400+30:1800+30"]

1. e4 {[%emt 0:00:00]} e5 {[%emt 0:00:00]} 2. Nf3 {[%emt 0:00:00]} Nc6 {[%emt 0:00:00]} 3. Bc4 {[%emt 0:00:00]} Nf6 {[%emt 0:00:00]} 4. d3 {[%emt 0:00:01]} Be7 {[%emt 0:00:41]} 5. O-O {[%emt 0:00:36]} d6 {[%emt 0:00:13]} 6. c3 {[%emt 0:01:17]} O-O {[%emt 0:00:05]} 7. Nbd2 {[%emt 0:06:49]} Na5 {[%emt 0:01:03]} 8. Bb5 {[%emt 0:04:03]} a6 {[%emt 0:00:47]} 9. Ba4 {[%emt 0:00:10]} b5 {[%emt 0:00:07]} 10. Bc2 {[%emt 0:00:11]} c5 {[%emt 0:00:05]} 11. Re1 {[%emt 0:03:25]} Nc6 {[%emt 0:01:16]} 12. Nf1 {[%emt 0:04:22]} h6 {[%emt 0:00:57]} 13. Ne3 {[%emt 0:08:35]} Re8 {[%emt 0:03:40]} 14. d4 {[%emt 0:07:08]} Bf8 {[%emt 0:01:55]} 15. dxc5 {[%emt 0:05:58]} dxc5 {[%emt 0:00:04]} 16. Nd5 {[%emt 0:00:46]} Be6 {[%emt 0:00:26]} 17. Nxf6+ {[%emt 0:04:44]} Qxf6 {[%emt 0:00:06]} 18. h3 {[%emt 0:02:09]} Rad8 {[%emt 0:00:53]} 19. Qe2 {[%emt 0:04:43]} Ne7 {[%emt 0:02:08]} 20. Rd1 {[%emt 0:03:42]} Ng6 {[%emt 0:00:42]} 21. a4 {[%emt 0:06:51]} Rxd1+ {[%emt 0:02:57]} 22. Qxd1 {[%emt 0:02:55]} Rd8 {[%emt 0:00:31]} 23. Qe1 {[%emt 0:02:02]} Bxh3 {[%emt 0:01:25]} 24. gxh3 {[%emt 0:03:17]} Qxf3 {[%emt 0:00:09]} 25. Qe3 {[%emt 0:00:47]} Qf6 {[%emt 0:00:39]} 26. axb5 axb5 {[%emt 0:00:59]} 27. Qe2 {[%emt 0:06:40]} Nf4 {[%emt 0:00:57]} 28. Bxf4 {[%emt 0:02:13]} Qxf4 {[%emt 0:01:20]} 29. Rd1 {[%emt 0:01:29]} Rxd1+ {[%emt 0:00:05]} 30. Qxd1 {[%emt 0:00:20]} c4 {[%emt 0:00:12]} 31. Kg2 {[%emt 0:01:39]} Qg5+ {[%emt 0:00:22]} 32. Kf1 {[%emt 0:02:21]} Bc5 {[%emt 0:01:21]} 33. Qe2 {[%emt 0:02:34]} Qf4 {[%emt 0:00:53]} 34. Bd1 {[%emt 0:02:57]} g6 {[%emt 0:05:44]} 35. Qf3 {[%emt 0:02:44]} Qc1 {[%emt 0:05:46]} 36. Qe2 {[%emt 0:00:25]} f5 {[%emt 0:00:46]} 37. exf5 {[%emt 0:01:37]} gxf5 {[%emt 0:00:04]} 38. Qc2 {[%emt 0:02:34]} Qf4 {[%emt 0:00:51]} 39. Qe2 {[%emt 0:01:27]} e4 {[%emt 0:00:13]} 40. Kg2 {[%emt 0:00:00]} Qg5+ {[%emt 0:00:00]} 41. Kf1 {[%emt 0:02:55]} Kg7 {[%emt 0:01:42]} 42. b3 {[%emt 0:03:53]} Qh4 {[%emt 0:02:24]} 43. Kg2 {[%emt 0:01:23]} Kf6 {[%emt 0:01:19]} 44. bxc4 {[%emt 0:01:32]} f4 {[%emt 0:00:27]} 45. Qd2 {[%emt 0:02:35]} Ke7 {[%emt 0:01:15]} 46. cxb5 {[%emt 0:02:09]} f3+ {[%emt 0:00:51]} 47. Bxf3 {[%emt 0:01:38]} exf3+ {[%emt 0:00:04]} 48. Kxf3 {[%emt 0:00:12]} Qxh3+ {[%emt 0:00:35]} 49. Ke2 {[%emt 0:01:39]} Qg4+ {[%emt 0:00:44]} 50. Kf1 {[%emt 0:07:44]} h5 {[%emt 0:03:52]} 51. Qe2+ {[%emt 0:03:03]} Kf6 {[%emt 0:00:03]} 52. Qxg4 {[%emt 0:00:16]} hxg4 {[%emt 0:00:05]} 53. Kg2 {[%emt 0:00:08]} Bd6 {[%emt 0:00:15]} 54. c4 {[%emt 0:03:31]} Ke6 {[%emt 0:00:32]} 55. c5 {[%emt 0:02:03]} Be5 {[%emt 0:00:34]} 56. c6 {[%emt 0:02:04]} Kd6 {[%emt 0:00:35]} 57. Kf1 {[%emt 0:01:29]} Kc7 {[%emt 0:00:35]} 58. Ke2 {[%emt 0:01:01]} Bd4 {[%emt 0:01:14]} 59. Kf1 {[%emt 0:05:56]} Kb6 {[%emt 0:00:36]} 60. Ke2 {[%emt 0:00:11]} Bc5 {[%emt 0:00:17]} 61. Kf1 {[%emt 0:00:42]} Bd6 {[%emt 0:00:12]} 62. Ke2 {[%emt 0:00:19]} Bc5 {[%emt 0:02:16]} 63. Kf1 {[%emt 0:00:18]} Kc7 {[%emt 0:01:01]} 64. Kg2 {[%emt 0:00:29]} Bd6 {[%emt 0:00:06]} 65. Kf1 {[%emt 0:00:07]} Be5 {[%emt 0:00:26]} 66. Ke2 {[%emt 0:00:13]} Bd4 {[%emt 0:00:10]} 67. Kf1 {[%emt 0:00:41]} Kd6 {[%emt 0:00:34]} 68. Kg2 {[%emt 0:01:00]} Be5 {[%emt 0:00:04]} 69. Kf1 {[%emt 0:00:09]} Kd5 {[%emt 0:00:25]} 70. Ke2 {[%emt 0:00:09]} Bc7 {[%emt 0:00:13]} 71. Ke3 {[%emt 0:01:38]} Ke5 {[%emt 0:00:43]} 72. f3 {[%emt 0:00:45]} Bb6+ {[%emt 0:00:04]} 73. Ke2 {[%emt 0:00:17]} g3 {[%emt 0:00:04]} 74. Kf1 {[%emt 0:00:15]} Kf4 {[%emt 0:00:11]} 75. Kg2 {[%emt 0:00:07]} Bc7 {[%emt 0:00:02]} 76. Kf1 {[%emt 0:00:28]} Kxf3 {[%emt 0:00:05]} 77. Kg1 {[%emt 0:00:05]} g2 {[%emt 0:00:16]} 0-1

[Event "56th Rubinstein Memorial C 2020"]
[Site "Polanica Zdroj"]
[Date "2020.08.15"]
[Round "1.14"]
[White "Podgorski, Maciej"]
[Black "Lada, Damian"]
[Result "1-0"]
[ECO "C10"]
[WhiteElo "1810"]
[BlackElo "1619"]
[Annotator "NA"]
[PlyCount "75"]
[EventDate "2020.08.15"]
[EventType "swiss"]
[EventCountry "POL"]
[SourceTitle "playchess.com"]
[Source "ChessBase"]
[SourceQuality "1"]
[TimeControl "40/5400+30:1800+30"]

1. e4 e6 2. d4 d5 3. Nc3 dxe4 4. Nxe4 Nd7 5. Nf3 Ngf6 6. Bd3 Be7 7. Bg5 h6 8. Bf4 Nxe4 9. Bxe4 Nf6 10. Qe2 Nxe4 11. Qxe4 Bd6 12. O-O-O Bxf4+ 13. Qxf4 O-O 14. Rhe1 b6 15. Re3 Bb7 16. Ne5 Qg5 17. Qxg5 hxg5 18. f3 Rfd8 19. c3 Rac8 20. Red3 Rd6 21. b4 Ba6 22. R3d2 f6 23. Ng4 Bb5 24. Nf2 Rcd8 25. Kb2 c5 26. Ne4 Rd5 27. dxc5 Rxd2+ 28. Rxd2 Rxd2+ 29. Nxd2 bxc5 30. c4 Bd7 31. b5 e5 32. Ne4 Be6 33. Kc3 g4 34. fxg4 Bxg4 35. Nxc5 Kf7 36. a4 Ke7 37. a5 Bc8 38. b6 1-0

[Event "56th Rubinstein Memorial C 2020"]
[Site "Polanica Zdroj"]
[Date "2020.08.15"]
[Round "1.15"]
[White "Demski, Michal"]
[Black "Mocny, Tomasz"]
[Result "1-0"]
[ECO "B03"]
[WhiteElo "1617"]
[BlackElo "1802"]
[Annotator "NA"]
[PlyCount "95"]
[EventDate "2020.08.15"]
[EventType "swiss"]
[EventCountry "POL"]
[SourceTitle "playchess.com"]
[Source "ChessBase"]
[SourceQuality "1"]
[TimeControl "40/5400+30:1800+30"]

1. e4 Nf6 2. e5 Nd5 3. d4 d6 4. c4 Nb6 5. exd6 exd6 6. Bd3 Nc6 7. Be3 Qf6 8. Ne2 Bf5 9. O-O Be7 10. Nbc3 O-O 11. a3 Na5 12. c5 dxc5 13. dxc5 Rad8 14. Bd4 Rxd4 15. Nxd4 Bxd3 16. Qxd3 Rd8 17. cxb6 axb6 18. Qg3 Rxd4 19. Qxc7 h6 20. Rad1 Bd6 21. Qc8+ Kh7 22. Rxd4 Qxd4 23. Qf5+ Kg8 24. Nb5 Qd2 25. Nxd6 Qxd6 26. b4 Nc6 27. Qc8+ Nd8 28. h3 Kh7 29. Qf5+ g6 30. Qf3 Qc7 31. Rd1 Ne6 32. Qd5 Kg7 33. Re1 Kg8 34. Qd2 h5 35. Rc1 Qe5 36. Qe3 Qd6 37. Rc8+ Kh7 38. Qf3 Qd7 39. Rb8 Nd8 40. Qf6 Qe6 41. Qxe6 Nxe6 42. Rxb7 Kg7 43. Rxb6 Nf4 44. a4 g5 45. a5 f6 46. a6 Nd5 47. Rb7+ Kg6 48. a7 1-0

[Event "56th Rubinstein Memorial C 2020"]
[Site "Polanica Zdroj"]
[Date "2020.08.16"]
[Round "2.3"]
[White "Budnik, Mateusz"]
[Black "Maslo, Slawomir"]
[Result "1-0"]
[ECO "B90"]
[WhiteElo "2033"]
[BlackElo "1740"]
[Annotator "ChessBase"]
[PlyCount "69"]
[EventDate "2020.08.15"]
[EventType "swiss"]
[EventCountry "POL"]
[SourceTitle "playchess.com"]
[Source "ChessBase"]
[SourceQuality "1"]
[TimeControl "40/5400+30:1800+30"]

1. e4 {[%emt 0:00:00]} c5 {[%emt 0:00:00]} 2. Nf3 {[%emt 0:00:00]} d6 {[%emt 0:00:00]} 3. d4 {[%emt 0:00:00]} cxd4 {[%emt 0:00:05]} 4. Nxd4 {[%emt 0:00:00]} Nf6 {[%emt 0:00:09]} 5. Nc3 {[%emt 0:00:01]} a6 {[%emt 0:00:13]} 6. h3 {[%emt 0:00:07]} e5 {[%emt 0:00:33]} 7. Nde2 {[%emt 0:00:07]} h5 {[%emt 0:00:15]} 8. g3 {[%emt 0:00:14]} Be6 {[%emt 0:01:13]} 9. Bg2 {[%emt 0:00:14]} Be7 {[%emt 0:00:43]} 10. O-O {[%emt 0:00:24]} O-O {[%emt 0:00:41]} 11. Be3 {[%emt 0:02:08]} b5 {[%emt 0:02:54]} 12. Nd5 {[%emt 0:00:45]} Nxd5 {[%emt 0:19:27]} 13. exd5 {[%emt 0:02:46]} Bc8 {[%emt 0:01:24]} 14. a4 {[%emt 0:00:42]} b4 {[%emt 0:05:31]} 15. c4 {[%emt 0:04:50]} bxc3 {[%emt 0:05:46]} 16. bxc3 {[%emt 0:01:51]} Nd7 {[%emt 0:04:44]} 17. c4 {[%emt 0:07:24]} Qc7 {[%emt 0:01:05]} 18. Rc1 {[%emt 0:02:05]} Nc5 {[%emt 0:03:26]} 19. Nc3 {[%emt 0:03:41]} Bf5 {[%emt 0:04:59]} 20. Bxc5 {[%emt 0:06:19]} Qxc5 {[%emt 0:00:25]} 21. Qxh5 {[%emt 0:00:52]} Bg6 {[%emt 0:01:59]} 22. Qg4 {[%emt 0:01:32]} Bd3 {[%emt 0:15:33]} 23. Rfd1 {[%emt 0:08:31]} f5 {[%emt 0:01:33]} 24. Qh5 {[%emt 0:00:26]} e4 {[%emt 0:01:42]} 25. Ne2 {[%emt 0:03:07]} Rf6 {[%emt 0:01:08]} 26. Nf4 {[%emt 0:00:47]} Rh6 {[%emt 0:00:18]} 27. Qxf5 {[%emt 0:05:46]} Rf8 {[%emt 0:03:55]} 28. Qg4 {[%emt 0:02:03]} Kh8 {[%emt 0:07:38]} 29. h4 {[%emt 0:10:43]} Bd8 {[%emt 0:03:16]} 30. Ng6+ {[%emt 0:06:17]} Rxg6 {[%emt 0:01:07]} 31. Qxg6 {[%emt 0:00:06]} Qxf2+ {[%emt 0:00:50]} 32. Kh2 {[%emt 0:03:07]} Be2 {[%emt 0:03:27]} 33. Rf1 {[%emt 0:00:53]} Bxf1 {[%emt 0:01:21]} 34. Rxf1 {[%emt 0:00:08]} Rf6 {[%emt 0:00:35]} 35. Qe8+ {[%emt 0:00:26]} 1-0

[Event "56th Rubinstein Memorial C 2020"]
[Site "Polanica Zdroj"]
[Date "2020.08.16"]
[Round "2.4"]
[White "Orlik, Sandra"]
[Black "Komendecki, Jacek"]
[Result "1/2-1/2"]
[ECO "E71"]
[WhiteElo "1738"]
[BlackElo "2024"]
[Annotator "NA"]
[PlyCount "65"]
[EventDate "2020.08.15"]
[EventType "swiss"]
[EventCountry "POL"]
[SourceTitle "playchess.com"]
[Source "ChessBase"]
[SourceQuality "1"]
[TimeControl "40/5400+30:1800+30"]

1. d4 {[%emt 0:00:01]} Nf6 {[%emt 0:00:00]} 2. c4 {[%emt 0:00:30]} g6 {[%emt 0:00:14]} 3. Nc3 {[%emt 0:00:39]} Bg7 {[%emt 0:00:12]} 4. e4 {[%emt 0:01:00]} d6 {[%emt 0:00:10]} 5. h3 {[%emt 0:00:35]} O-O {[%emt 0:02:47]} 6. Be3 {[%emt 0:01:16]} e5 {[%emt 0:01:33]} 7. d5 {[%emt 0:00:54]} Na6 {[%emt 0:02:28]} 8. g4 {[%emt 0:01:56]} Nc5 {[%emt 0:02:05]} 9. f3 {[%emt 0:00:44]} c6 {[%emt 0:03:14]} 10. Nge2 {[%emt 0:01:27]} cxd5 {[%emt 0:01:50]} 11. cxd5 {[%emt 0:01:07]} h5 {[%emt 0:09:17]} 12. Qd2 {[%emt 0:08:46]} Nh7 {[%emt 0:07:04]} 13. Nc1 {[%emt 0:09:54]} Bd7 {[%emt 0:18:32]} 14. Nd3 {[%emt 0:09:46]} Nxd3+ {[%emt 0:05:06]} 15. Bxd3 {[%emt 0:00:13]} h4 {[%emt 0:04:01]} 16. g5 {[%emt 0:03:01]} a6 {[%emt 0:03:15]} 17. Ke2 {[%emt 0:04:30]} f6 {[%emt 0:04:24]} 18. gxf6 {[%emt 0:02:13]} Qxf6 {[%emt 0:00:30]} 19. Raf1 {[%emt 0:00:47]} b5 {[%emt 0:02:21]} 20. a3 {[%emt 0:07:00]} Rac8 {[%emt 0:01:37]} 21. Ke1 {[%emt 0:01:55]} g5 {[%emt 0:07:31]} 22. Qg2 {[%emt 0:01:42]} Kh8 {[%emt 0:01:06]} 23. Qd2 {[%emt 0:03:18]} Bh6 {[%emt 0:00:36]} 24. Nd1 {[%emt 0:00:59]} Qd8 {[%emt 0:03:20]} 25. Be2 {[%emt 0:01:03]} Qc7 {[%emt 0:03:31]} 26. Nf2 {[%emt 0:01:19]} Qc2 {[%emt 0:02:18]} 27. Bd1 {[%emt 0:01:40]} Qb1 {[%emt 0:02:09]} 28. Ke2 {[%emt 0:02:19]} Qa2 {[%emt 0:03:01]} 29. Ng4 {[%emt 0:01:50]} Bxg4 {[%emt 0:02:22]} 30. hxg4 {[%emt 0:01:54]} Qc4+ {[%emt 0:04:06]} 31. Qd3 {[%emt 0:01:32]} Qa2 {[%emt 0:00:55]} 32. Qd2 {[%emt 0:00:55]} Qc4+ {[%emt 0:00:06]} 33. Ke1 1/2-1/2

[Event "56th Rubinstein Memorial C 2020"]
[Site "Polanica Zdroj"]
[Date "2020.08.16"]
[Round "2.8"]
[White "Jankowski, Aleksander"]
[Black "Kawalko, Adam"]
[Result "*"]
[ECO "E10"]
[WhiteElo "1692"]
[BlackElo "1950"]
[Annotator "ChessBase"]
[PlyCount "30"]
[EventDate "2020.08.15"]
[EventType "swiss"]
[EventCountry "POL"]
[SourceTitle "playchess.com"]
[Source "ChessBase"]
[SourceQuality "1"]
[TimeControl "40/5400+30:1800+30"]

1. d4 {[%emt 0:00:00]} Nf6 2. c4 {[%emt 0:00:00]} e6 {[%emt 0:01:16]} 3. Nf3 {[%emt 0:00:00]} c5 {[%emt 0:01:19]} 4. g3 {[%emt 0:00:14]} cxd4 {[%emt 0:03:17]} 5. Nxd4 Bb4+ {[%emt 0:01:31]} 6. Bd2 {[%emt 0:00:51]} Be7 {[%emt 0:03:40]} 7. Bg2 {[%emt 0:02:08]} O-O {[%emt 0:08:00]} 8. Nc3 {[%emt 0:02:40]} Nc6 {[%emt 0:06:01]} 9. Bf4 {[%emt 0:13:58]} Nh5 {[%emt 0:19:06]} 10. Be3 {[%emt 0:19:43]} a6 {[%emt 0:10:04]} 11. O-O {[%emt 0:02:22]} f5 {[%emt 0:05:50]} 12. Na4 {[%emt 0:08:36]} Ne5 {[%emt 0:06:55]} 13. Qc1 {[%emt 0:10:56]} Qc7 {[%emt 0:06:49]} 14. Rd1 {[%emt 0:04:50]} Nf3+ {[%emt 0:09:00]} 15. Bxf3 {[%emt 0:06:13]} f4 {[%emt 0:03:06]} *

[Event "56th Rubinstein Memorial C 2020"]
[Site "Polanica Zdroj"]
[Date "2020.08.16"]
[Round "2.9"]
[White "Janzer, Hubert"]
[Black "Komendecki, Antoni"]
[Result "1-0"]
[ECO "C49"]
[WhiteElo "1893"]
[BlackElo "1631"]
[Annotator "NA"]
[PlyCount "63"]
[EventDate "2020.08.15"]
[EventType "swiss"]
[EventCountry "POL"]
[SourceTitle "playchess.com"]
[Source "ChessBase"]
[SourceQuality "1"]
[TimeControl "40/5400+30:1800+30"]

1. e4 {[%emt 0:00:00]} e5 {[%emt 0:00:00]} 2. Nf3 {[%emt 0:00:00]} Nc6 {[%emt 0:00:00]} 3. Nc3 {[%emt 0:00:00]} Nf6 {[%emt 0:00:03]} 4. Bb5 {[%emt 0:00:00]} Bb4 {[%emt 0:00:17]} 5. O-O {[%emt 0:00:00]} d6 {[%emt 0:00:21]} 6. Nd5 {[%emt 0:00:14]} Nxe4 {[%emt 0:00:27]} 7. Nxb4 {[%emt 0:00:40]} Ng5 {[%emt 0:00:51]} 8. Nxc6 {[%emt 0:00:15]} Qd7 {[%emt 0:00:27]} 9. Nxa7 {[%emt 0:00:50]} c6 {[%emt 0:00:39]} 10. Nxc8 {[%emt 0:00:39]} Rxc8 {[%emt 0:00:22]} 11. Bc4 {[%emt 0:01:25]} Nxf3+ {[%emt 0:00:17]} 12. Qxf3 {[%emt 0:00:15]} O-O {[%emt 0:00:13]} 13. Re1 {[%emt 0:01:07]} d5 {[%emt 0:00:14]} 14. Bb3 {[%emt 0:00:29]} e4 {[%emt 0:00:19]} 15. Qh3 {[%emt 0:00:30]} Qe7 {[%emt 0:00:32]} 16. d3 {[%emt 0:00:34]} Rce8 {[%emt 0:00:20]} 17. Qg3 {[%emt 0:01:25]} g6 {[%emt 0:00:47]} 18. Bh6 {[%emt 0:00:43]} f5 {[%emt 0:05:03]} 19. Bxf8 {[%emt 0:00:33]} Rxf8 {[%emt 0:00:11]} 20. dxe4 {[%emt 0:00:58]} Re8 {[%emt 0:00:04]} 21. Qe3 {[%emt 0:00:50]} fxe4 {[%emt 0:01:05]} 22. f3 {[%emt 0:01:05]} c5 {[%emt 0:00:32]} 23. Bxd5+ {[%emt 0:00:00]} Kf8 {[%emt 0:01:10]} 24. Qh6+ {[%emt 0:00:00]} Qg7 {[%emt 0:00:15]} 25. Qxg7+ {[%emt 0:00:00]} Kxg7 {[%emt 0:00:07]} 26. Rxe4 {[%emt 0:00:00]} Rf8 {[%emt 0:00:08]} 27. Re7+ {[%emt 0:00:07]} Kf6 {[%emt 0:00:15]} 28. Rxh7 {[%emt 0:00:28]} Ke5 {[%emt 0:00:19]} 29. Rf7 {[%emt 0:00:35]} Re8 {[%emt 0:00:17]} 30. Re1+ {[%emt 0:00:14]} Kxd5 {[%emt 0:00:14]} 31. Rxe8 {[%emt 0:00:09]} Kd6 {[%emt 0:00:17]} 32. Rg7 {[%emt 0:01:25]} 1-0

[Event "56th Rubinstein Memorial C 2020"]
[Site "Polanica Zdroj"]
[Date "2020.08.16"]
[Round "2.10"]
[White "Szopa, Emilia"]
[Black "Lewandrowski, Tomasz"]
[Result "0-1"]
[ECO "B20"]
[WhiteElo "1628"]
[BlackElo "1879"]
[Annotator "NA RC"]
[PlyCount "68"]
[EventDate "2020.08.15"]
[EventType "swiss"]
[EventCountry "POL"]
[SourceTitle "playchess.com"]
[Source "ChessBase"]
[SourceQuality "1"]
[TimeControl "40/5400+30:1800+30"]

1. e4 c5 2. Ne2 e5 3. g3 d5 4. Bg2 dxe4 5. Bxe4 Nc6 6. O-O Bh3 7. Bg2 Bxg2 8. Kxg2 Nf6 9. Nbc3 Be7 {[%emt 0:12:56]} 10. d3 {[%emt 0:13:12]} O-O {[%emt 0:00:30]} 11. f4 {[%emt 0:00:30]} exf4 {[%emt 0:00:30]} 12. Bxf4 {[%emt 0:00:30]} Nd4 {[%emt 0:00:30]} 13. Nxd4 {[%emt 0:00:30]} cxd4 {[%emt 0:00:30]} 14. Ne4 {[%emt 0:00:30]} Rc8 {[%emt 0:00:30]} 15. Nxf6+ {[%emt 0:00:30]} Bxf6 {[%emt 0:00:30]} 16. Rf2 {[%emt 0:00:30]} Qb6 {[%emt 0:00:30]} 17. Rb1 {[%emt 0:00:30]} Rc5 {[%emt 0:00:30]} 18. Kg1 {[%emt 0:00:30]} Rfc8 {[%emt 0:00:30]} 19. b3 {[%emt 0:00:30]} Qc6 {[%emt 0:00:30]} 20. h4 {[%emt 0:00:30]} Rxc2 {[%emt 0:00:30]} 21. Rxc2 {[%emt 0:00:30]} Qxc2 {[%emt 0:00:30]} 22. Qxc2 {[%emt 0:00:30]} Rxc2 {[%emt 0:00:30]} 23. Rc1 {[%emt 0:00:30]} Rxc1+ {[%emt 0:00:30]} 24. Bxc1 {[%emt 0:00:30]} Be5 {[%emt 0:00:30]} 25. Bf4 {[%emt 0:00:30]} Bxf4 {[%emt 0:00:30]} 26. gxf4 {[%emt 0:00:30]} f5 {[%emt 0:00:30]} 27. Kf2 {[%emt 0:00:30]} Kf7 {[%emt 0:00:30]} 28. Kg3 {[%emt 0:00:30]} Kg6 {[%emt 0:00:30]} 29. Kh3 {[%emt 0:00:30]} Kh5 {[%emt 0:00:30]} 30. Kg3 {[%emt 0:00:30]} h6 {[%emt 0:00:30]} 31. Kh3 {[%emt 0:00:30]} g5 {[%emt 0:00:30]} 32. Kg3 {[%emt 0:00:30]} gxf4+ {[%emt 0:00:30]} 33. Kxf4 {[%emt 0:00:30]} Kxh4 {[%emt 0:00:30]} 34. Kxf5 {[%emt 0:00:30]} Kg3 {[%emt 0:00:30]} 0-1

[Event "56th Rubinstein Memorial C 2020"]
[Site "Polanica Zdroj"]
[Date "2020.08.16"]
[Round "2.11"]
[White "Rudecki, Bartosz"]
[Black "Demski, Michal"]
[Result "1-0"]
[ECO "B07"]
[WhiteElo "1831"]
[BlackElo "1617"]
[Annotator "NA"]
[PlyCount "53"]
[EventDate "2020.08.15"]
[EventType "swiss"]
[EventCountry "POL"]
[SourceTitle "playchess.com"]
[Source "ChessBase"]
[SourceQuality "1"]
[TimeControl "40/5400+30:1800+30"]

1. e4 {[%emt 0:00:00]} d6 {[%emt 0:00:00]} 2. d4 {[%emt 0:00:00]} Nf6 {[%emt 0:00:00]} 3. Nc3 {[%emt 0:00:00]} Nbd7 {[%emt 0:00:00]} 4. Nf3 {[%emt 0:01:06]} e5 {[%emt 0:00:00]} 5. Bc4 {[%emt 0:00:28]} Be7 {[%emt 0:00:00]} 6. O-O {[%emt 0:00:14]} h6 {[%emt 0:00:32]} 7. h3 {[%emt 0:00:44]} c6 {[%emt 0:00:49]} 8. a4 {[%emt 0:00:06]} Qc7 {[%emt 0:00:52]} 9. Be3 {[%emt 0:01:55]} Nf8 {[%emt 0:08:02]} 10. Nh4 {[%emt 0:02:40]} Nxe4 {[%emt 0:16:37]} 11. Nxe4 {[%emt 0:01:59]} Bxh4 {[%emt 0:01:07]} 12. dxe5 {[%emt 0:00:27]} d5 {[%emt 0:13:15]} 13. Nd6+ {[%emt 0:00:45]} Kd8 {[%emt 0:02:09]} 14. Qh5 {[%emt 0:01:23]} Ng6 {[%emt 0:04:40]} 15. Bd3 {[%emt 0:00:21]} Qe7 {[%emt 0:11:43]} 16. Bxg6 {[%emt 0:01:26]} fxg6 {[%emt 0:00:10]} 17. Qxg6 {[%emt 0:00:15]} Rf8 {[%emt 0:07:51]} 18. Nxc8 {[%emt 0:03:39]} Rxc8 {[%emt 0:04:09]} 19. g3 {[%emt 0:00:06]} Qxe5 {[%emt 0:09:49]} 20. gxh4 {[%emt 0:00:31]} Rf6 {[%emt 0:01:49]} 21. Qxg7 {[%emt 0:03:12]} Qf5 {[%emt 0:02:14]} 22. h5 {[%emt 0:06:13]} Rf7 {[%emt 0:02:53]} 23. Qg4 {[%emt 0:00:28]} Qh7 {[%emt 0:01:12]} 24. Bd4 {[%emt 0:00:46]} Rcc7 {[%emt 0:01:43]} 25. Rae1 {[%emt 0:00:21]} Rg7 {[%emt 0:01:32]} 26. Bf6+ {[%emt 0:00:14]} Rce7 {[%emt 0:00:04]} 27. Qxg7 {[%emt 0:00:23]} 1-0